Cogmind - Beta 10.2 @@@ ROGUE MODE // 2021.11.26 @ 22:17:06 Player: Gengar Result: Destroyed by as-93392 with Assembled Rifle Performance ------------- Evolutions (1) 500 Regions Visited (3) 600 Robots Destroyed (7) 35 Value Destroyed (309) 309 Prototype IDs (0) 0 Alien Tech Used (0) 0 Bonus (0) 0 TOTAL SCORE: 1444 Bonus ------- None Cogmind --------- Core Integrity 0/400 Matter 216/300 Energy 100/100 System Corruption 0% Temperature Cool (213) Movement Core (450) Ox8 Location -9/Mines Parts ------- > --- POWER (1) -------- (None) > --- PROPULSION (2) --- (None) > --- UTILITY (3) ------ Heat Sink Large Storage Unit > --- WEAPON (3) ------- Minigun Assault Cannon > --- INVENTORY (10) --- Ion Engine Small Laser Faulty Improved Medium Laser Light EM Pulse Cannon Minigun Assault Cannon Peak State ------------ > --- POWER ------------ Improved Ion Engine > --- PROPULSION ------- Compact Wheel Compact Wheel > --- UTILITY ---------- Heat Sink Large Storage Unit > --- WEAPON ----------- Minigun Assault Cannon Assault Cannon > --- INVENTORY -------- Ion Engine Small Laser Improved Medium Laser Light EM Pulse Cannon Minigun Assault Cannon [Rating: 16] Favorites ----------- Power Ion Engine Engine Ion Engine Propulsion Compact Wheel Wheel Compact Wheel Utility Heat Sink Device Heat Sink Storage Small Storage Unit Weapon Assault Cannon Energy Gun Medium Laser Ballistic Gun Assault Rifle Ballistic Cannon Assault Cannon Build | -11 -10 -9 -9 ------- Run | Scr Mat Mat Min Slots Evolved 2 | . . 2 . Power . | . . . . Propulsion . | . . . . Utility 1 | . . 1 . Weapon 1 | . . 1 . Parts Attached 14 | 6 1 6 1 Power 2 | 1 . 1 . Engine 2 | 1 . 1 . Core . | . . . . Reactor . | . . . . Propulsion 2 | 2 . . . Treads . | . . . . Leg . | . . . . Wheel 2 | 2 . . . Hover . | . . . . Flight . | . . . . Utility 3 | 1 1 1 . Device 1 | . 1 . . Storage 2 | 1 . 1 . Processor . | . . . . Hackware . | . . . . Protection . | . . . . Artifact . | . . . . Weapon 7 | 2 . 4 1 Energy Gun 3 | 1 . 2 . Energy Cannon . | . . . . Ballistic Gun 2 | 1 . . 1 Ballistic Cannon 2 | . . 2 . Launcher . | . . . . Special Weapon . | . . . . Impact Weapon . | . . . . Slashing Weapon . | . . . . Piercing Weapon . | . . . . Special Melee Weapon . | . . . . Unidentified Prototypes . | . . . . Parts Lost 7 | . . 2 5 Power 1 | . . . 1 Propulsion 2 | . . . 2 Utility . | . . . . Weapon 4 | . . 2 2 Highest Loss Streak 5 | . . 1 5 Average Slot Usage (%) 88 | . 90 88 82 Engine 11 | . 14 11 11 Wheel 23 | . 28 22 16 Device 9 | . 4 11 11 Storage 11 | . 14 11 11 Energy Gun 8 | . 14 6 . Ballistic Gun 11 | . 14 11 11 Ballistic Cannon 11 | . . 15 22 Naked Turns . | . . . . Heaviest Build 36 | 13 14 36 36 Greatest Support 32 | 32 32 32 32 Greatest Overweight (x) 1 | . . 1 1 Average Overweight (x) . | . . . 1 Largest Inventory Capacity 12 | 6 6 12 10 Average Capacity 7 | 5 6 8 10 Most Carried 7 | 2 2 7 7 Average Carried 3 | 1 2 4 6 Final Capacity 10 | 6 6 10 10 Final Carried 7 | 2 2 7 6 Class Distribution -------------------- 65% | Gunner 34% | Mutant Dominant Class ---------------- Mutant | -10/Materials Gunner | -9/Materials Gunner | -9/Mines Resources | -11 -10 -9 -9 ----------- Run | Scr Mat Mat Min Matter Collected 485 | 245 43 173 24 Remotely . | . . . . Salvage Created 322 | . 94 224 4 Parts 14 | . 3 11 . Haulers Intercepted . | . . . . Recyclers Shooed . | . . . . Parts Field Recycled . | . . . . Retrieved Matter . | . . . . Parts Self-Destructed . | . . . . Prevented . | . . . . Kills | -11 -10 -9 -9 ------- Run | Scr Mat Mat Min Combat Hostiles Destroyed 8 | . 2 5 1 Guns 4 | . 2 2 . Cannons 4 | . . 3 1 Classes Destroyed 4 | . 1 2 1 Grunt 3 | . 2 1 . Duelist 2 | . . 2 . Sentry 2 | . . 2 . Assembled 1 | . . . 1 Best Kill Streak 3 | . 2 3 1 Combat Bots Only 3 | . 2 3 1 Max Kills in Single Turn 1 | . 1 1 1 Gunslinging . | . . . . Exploded . | . . . . Melee . | . . . . Uniques/NPCs Destroyed . | . . . . Combat | -11 -10 -9 -9 -------- Run | Scr Mat Mat Min Damage Taken 1279 | . 76 406 797 Core 431 | . 22 85 324 Absorbed by Shields . | . . . . Core Remaining (%) 95 | 100 91 . . Volleys Fired 31 | . 6 19 6 Largest 3 | . 2 3 3 Hottest 126 | . 70 126 113 Shots Fired 87 | . 12 57 18 Gun 54 | . 12 36 6 Cannon 33 | . . 21 12 Launcher . | . . . . Special . | . . . . Kinetic 64 | . 6 40 18 Thermal 23 | . 6 17 . Explosive . | . . . . Electromagnetic . | . . . . Robot Hit Streak 14 | . 9 14 1 Robot Miss Streak 5 | . 1 3 5 Penetration Max . | . . . . Secondary Targets . | . . . . Shots Hit Robots 46 | . 10 31 5 Core Hits 17 | . 5 11 1 Critical Hits . | . . . . Critical Kills . | . . . . Critical Parts Destroyed . | . . . . Melee Attacks . | . . . . Impact . | . . . . Slashing . | . . . . Piercing . | . . . . Sneak Attacks . | . . . . Combat Hostiles . | . . . . Follow-up Attacks . | . . . . Damage Inflicted 778 | . 125 508 145 Guns 418 | . 125 246 47 Cannons 360 | . . 262 98 Explosions . | . . . . Melee . | . . . . Ramming . | . . . . Kinetic 590 | . 50 395 145 Thermal 188 | . 75 113 . Explosive . | . . . . Electromagnetic . | . . . . Impact . | . . . . Slashing . | . . . . Piercing . | . . . . Highest Corruption . | . . . . Average Corruption . | . . . . Corruption Purged . | . . . . Overload Shots . | . . . . Overflow Damage 15 | . . 5 10 Projectiles 15 | . . 5 10 Explosions . | . . . . Melee . | . . . . Knockbacks 2 | . . . 2 Impact . | . . . . Kinetic 2 | . . . 2 Secondary . | . . . . Self-Inflicted Damage . | . . . . Shots . | . . . . Rammed . | . . . . Targets Rammed . | . . . . Kicked . | . . . . Crushed . | . . . . Highest Temperature 213 | . 93 129 213 Average Temperature 54 | . 46 42 108 Received Heat Transfer 334 | . 45 129 160 Siege Activations . | . . . . Robots Corrupted . | . . . . Combat Hostiles . | . . . . Parts Fried . | . . . . Impact Corruptions . | . . . . Robots Melted . | . . . . Combat Hostiles . | . . . . Parts Melted . | . . . . Heat Transferred 531 | . 222 309 . Parts Sabotaged . | . . . . Parts Stolen . | . . . . Parts Stripped . | . . . . Power Chain Reactions . | . . . . Missiles Intercepted . | . . . . Alert | -11 -10 -9 -9 ------- Run | Scr Mat Mat Min Peak Influence 265 | . 50 265 103 Initial 103 | . . 20 103 Average 100 | . 18 151 91 Maximum Alert Level 1 | . . 1 . Low Security (%) 81 | 100 100 68 100 Level 1 18 | . . 31 . Level 2 . | . . . . Level 3 . | . . . . Level 4 . | . . . . Level 5 . | . . . . High Security . | . . . . Max Security . | . . . . Squads Dispatched 1 | . . 1 . Investigation 1 | . . 1 . Extermination . | . . . . Reinforcement . | . . . . Assault . | . . . . Garrison . | . . . . Intercept . | . . . . Construction Impeded . | . . . . Haulers Reinforced . | . . . . Stealth | -11 -10 -9 -9 --------- Run | Scr Mat Mat Min Distress Signals . | . . . . Communications Jammed . | . . . . Distress Signals . | . . . . Times Spotted 23 | . 2 12 9 Peak Tracking Total 9 | . 2 5 9 Tactical Retreats 2 | . . 2 . Traps | -11 -10 -9 -9 ------- Run | Scr Mat Mat Min Traps Triggered 1 | . . 1 . Indirectly . | . . . . Trap Hack Attempts . | . . . . Triggered . | . . . . Disarmed . | . . . . Reprogrammed . | . . . . Reused . | . . . . Traps Extracted . | . . . . Installed . | . . . . Triggered . | . . . . Machines | -11 -10 -9 -9 ---------- Run | Scr Mat Mat Min Machines Disabled 1 | . . 1 . Max in Single Turn 1 | . . 1 . Machines Sabotaged . | . . . . Garrisons Compromised . | . . . . Overloaded Fab Kills . | . . . . Fab Network Shutdowns . | . . . . Hacking | -11 -10 -9 -9 --------- Run | Scr Mat Mat Min Machines Accessed 3 | . 1 2 . Terminals 3 | . 1 2 . Fabricators . | . . . . Repair Stations . | . . . . Recycling Units . | . . . . Scanalyzers . | . . . . Garrison Access . | . . . . Total Hacks 8 | . 2 6 . Successful 5 | . 1 4 . Failed 3 | . 1 2 . Catastrophic . | . . . . Database Lockouts . | . . . . Manual . | . . . . Terminals 8 | . 2 6 . Fabricators . | . . . . Repair Stations . | . . . . Recycling Units . | . . . . Scanalyzers . | . . . . Garrison Access . | . . . . Terminal Hacks 5 | . 1 4 . Robot Analysis 1 | . 1 . . Emergency Access Points 1 | . . 1 . Alert Level 1 | . . 1 . Zone Layout 2 | . . 2 . Fabricator Hacks . | . . . . Repair Station Hacks . | . . . . Recycling Unit Hacks . | . . . . Scanalyzer . | . . . . Garrison Access Hacks . | . . . . Unauthorized Hacks . | . . . . Terminals . | . . . . Fabricators . | . . . . Repair Stations . | . . . . Recycling Units . | . . . . Scanalyzers . | . . . . Garrison Access . | . . . . Data Cores Recovered . | . . . . Used . | . . . . Hacking Detections 2 | . 1 1 . Full Trace Events . | . . . . Feedback Events . | . . . . Feedback Blocked . | . . . . Robot Schematics Acquired . | . . . . Robots Built . | . . . . Matter . | . . . . Time . | . . . . Total Robot Build Rating . | . . . . Part Schematics Acquired . | . . . . Parts Built . | . . . . Matter . | . . . . Time . | . . . . Total Part Build Rating . | . . . . Parts Repaired . | . . . . Time . | . . . . Parts Recycled . | . . . . Recycled Matter . | . . . . Retrieved Matter . | . . . . Retrieved Components . | . . . . Parts Scanalyzed . | . . . . Part Schematics Acquired . | . . . . Parts Damaged . | . . . . Bothacking | -11 -10 -9 -9 ------------ Run | Scr Mat Mat Min Used RIF Installer . | . . . . Robots Hacked . | . . . . Non-combat . | . . . . Combat . | . . . . Robot Hacks Applied . | . . . . Relay Couplers Released . | . . . . Robots Rewired . | . . . . Allies Hacked . | . . . . Hacks Repelled . | . . . . Allies | -11 -10 -9 -9 -------- Run | Scr Mat Mat Min Total Allies . | . . . . Largest Group . | . . . . Highest-Rated Group . | . . . . Highest-Rated Ally . | . . . . Total Orders . | . . . . Ally Attacks . | . . . . Total Damage . | . . . . Kills . | . . . . Allies Corrupted . | . . . . Allies Melted . | . . . . Intel | -11 -10 -9 -9 ------- Run | Scr Mat Mat Min Robot Analysis Total 1 | . 1 . . Derelict Logs Recovered . | . . . . Drone Launches . | . . . . Drone Recoveries . | . . . . Exploration | -11 -10 -9 -9 ------------- Run | Scr Mat Mat Min Turns Passed 631 | 46 177 374 34 Spaces Moved 430 | 37 129 253 11 Core 4 | 4 . . . Treads . | . . . . Legs . | . . . . Wheels 426 | 33 129 253 11 Hover . | . . . . Flight . | . . . . Fastest Speed 50 | 50 100 100 110 Average Speed 104 | 94 100 107 110 Slowest Speed 110 | 100 100 110 110 Overloaded Moves . | . . . . Propulsion Burnouts . | . . . . Robots Hopped . | . . . . Cave-ins Triggered 1 | . . . 1 Exploration Rate (%) 17 | 4 29 31 7 Regions Visited 3 Branch Regions 1 Pre-discovered Areas . | . . . . Known Exits Taken . | . . . . Unknown Exits Taken 3 | 1 1 1 . Scrap Searched 1 | . . . 1 Spaces Dug . | . . . . Terrain Destroyed 8 | . . 2 6 Melee . | . . . . Projectile 8 | . . 2 6 AOE . | . . . . Terrain Rammed . | . . . . Walls Destroyed . | . . . . Machines Disabled . | . . . . Actions | -11 -10 -9 -9 --------- Run | Scr Mat Mat Min Total 541 | 44 164 312 21 Wait 58 | . 29 26 3 Move 427 | 36 128 252 11 Hop . | . . . . Pick Up 9 | 2 . 7 . Fast Attach 8 | 6 1 1 . Attach 4 | . . 3 1 Detach . | . . . . Swap 2 | . . 2 . Drop 2 | . . 2 . Fire 31 | . 6 19 6 Melee . | . . . . Ram . | . . . . Kick . | . . . . Crush . | . . . . Escape Stasis . | . . . . Rewire . | . . . . Trap . | . . . . Miscellaneous . | . . . . Route ------- -11/Scrapyard -10/Materials (discovered 2 exits: *Mat / [*Min]) -9/Materials (discovered 2 exits: [*Min] / [*Sto]) -9/Mines History --------- Turn | Location | Event 19 | -11/Scrapyard | Discovered new exit (range 15) 47 | -11/Scrapyard | Entered Materials 127 | -10/Materials | Discovered new exit (range 12) 176 | -10/Materials | Discovered new exit (range 15) 224 | -10/Materials | Entered another Materials area 224 | -9/Materials | Evolved 2 slots: Utility x1, Weapon x1 225 | -9/Materials | Discovered new exit (range 8) 510 | -9/Materials | Build established: Gunner 574 | -9/Materials | Discovered new exit (range 15) 598 | -9/Materials | Entered Mines 599 | -9/Mines | Assembled infested the area 628 | -9/Mines | Met a Derelict bent on vengeance 629 | -9/Mines | Crushed by falling debris 629 | -9/Mines | Core integrity fell below 50% 629 | -9/Mines | Core integrity fell below 20% 632 | -9/Mines | Destroyed by as-93392 with Assembled Rifle Last Messages --------------- 00605_ Searching scrap... 00605_ Found Visual Processing Unit. 00605_ Found Imp. Hover Unit. 00605_ Found Beam Rifle. 00605_ Found Visual Processing Unit. 00605_ Found 24 Matter. 00606_ Acquired 24 matter. 00613_ Assault Rifle destroyed. 00621_ Knocked back. 00622_ Com. Wheel destroyed. 00624_ Destroyed Asb. Hover Unit. 00624_ as-26600 knocked back. 00626_ Com. Wheel destroyed. 00627_ Destroyed Asb. F-torch. 00627_ as-81477 knocked back. 00627_ as-26600 destroyed. 00629_ The unstable cave ceiling collapses. 00629_ Crushed by falling debris. 00630_ Imp. Ion Engine destroyed. 00631_ Assault Cannon destroyed. Map ----- +----------------------------------------------------+ | | | | | | | | | | | | | | | | | | | | | | | | | ?????????????????????????????????????? | | ?????????????????????????????????????? | | ?????????????????????????????????????? | | ?????????????????????????????????????? | | ?????????????????????????????????????? | | ?????????????????????????????????????? | | ?????????????????????????????????????? | | ?????????????????????????????????????? | | ????????????????#?????????????####???? | | ???????????????## ???????###### #???? | | ???????????????# ?????# a ##??? | | ???????????##### ##### ### #??? | | ?????????? ;#a#### #?? | | ?????????? a @a;### #? | | ?????????????###< %a=!! #? | | ???????????????# aa #? | | ??????????????# #####; ####;# #? | | ???????????? ?????## #?????# ##? | | ??????????? ???????# #??????##?? | | ???????????? ?????????# #?????????? | | ?????????????##??????????# ?????????? | | ?????????????????????????###?????????? | | ?????????????????????????????????????? | | ?????????????????????????????????????? | | ?????????????????????????????????????? | | ?????????????????????????????????????? | | ?????????????????????????????????????? | | ?????????????????????????????????????? | | ?????????????????????????????????????? | | ?????????????????????????????????????? | | ?????????????????????????????????????? | | ?????????????????????????????????????? | | ?????????????????????????????????????? | | ?????????????????????????????????????? | | ?????????????????????????????????????? | | ?????????????????????????????????????? | | ?????????????????????????????????????? | | ?????????????????????????????????????? | +----------------------------------------------------+ Best States ------------- Heat Dissipation 38 Energy Generation 12 Energy Capacity 265 Matter Stores 300 Matter Capacity 300 Sight Range 16 Terrain Scan Density 10 Evasion (%) 40 Item Schematics ----------------- None Robot Schematics ------------------ None Fabricated ------------ Nothing Alien Tech Used ----------------- None Achievements -------------- None Challenges ------------ None Game ------ Seed PotentialMolecularWarhead Manual? 0 Play Time 00:14:18 Cumulative 32.4 hours Start 2021.11.26 @ 22:02:43 End 2021.11.26 @ 22:17:06 Sessions 1 Manual Loads 0 Difficulty Rogue Special Mode None Game No. 26 Rogue 26 Adventurer 0 Explorer 0 Win Type - Total 0 Types 0/0/0/0/0/0/0/0/0 Lore% 31 Gallery% 28 Achievement% 18 Wizard Run 0 Options --------- ASCII 0 Keyboard 0 Movement Mouse Keybinds 0 Fullscreen 0 Font 20/SmallcapsGlow Map View 76x50 Tactical HUD 1 Map Filters NONE Filters NONE Steam 1 RUN: 9c509f60-b00d-4c45-9c22-baf5c41b7b8e